[Event "AUT Bundesliga Women 2021-22"]
[Site "Austria"]
[Date "2022.04.22"]
[Round "8.7"]
[White "Kurapova, Olga"]
[Black "Kimpel, Janine"]
[Result "1-0"]
[ECO "B05"]
[WhiteElo "1923"]
[BlackElo "1843"]
[Annotator "TA"]
[PlyCount "71"]
[EventDate "2021.11.06"]
[EventType "team-tourn"]
[EventCountry "AUT"]
[SourceTitle "playchess.com"]
[Source "ChessBase"]
[SourceQuality "1"]
[TimeControl "40/5400+30:1800+30"]

{[%evp 10,71,57,48,55,24,12,-20,-20,-15,0,0,0,0,6,-9,0,0,0,0,0,0,18,11,31,33,42,4,6,-12,193,202,206,195,194,168,325,165,135,64,172,170,212,180,379,371,348,325,319,302,298,283,515,514,498,494,431,346,527,513,560,549,505,488]} 1. e4 {[%emt 0:00:03][%cal Be2e4,Be4e5][%mdl 32]} Nf6 {[%emt 0:00:22]} 2. e5 {[%emt 0:00:06]} Nd5 {[%emt 0:00:08]} 3. d4 {[%emt 0:00:06]} d6 {[%emt 0:00:24]} 4. Nf3 {[%emt 0:00:08]} Bg4 {[%emt 0:03:40]} 5. Be2 {[%emt 0:00:49]} Nc6 {[%emt 0:01:39]} 6. O-O {[%emt 0:03:08]} e6 {[%emt 0:04:57] B05: Alekhine's Defence: 4 Nf3 Bg4.} 7. Bg5 {[%emt 0:12:25]} Be7 {[%emt 0:05:00]} 8. Bxe7 {[%emt 0:02:30]} (8. c4 $5 {[%cal Rc4d5]} Nb6 9. Bxe7 Qxe7 10. exd6 cxd6 11. Nbd2 $11) 8... Qxe7 {[%emt 0:01:48] The position is equal.} 9. exd6 {[%emt 0:00:11]} cxd6 {[%emt 0:08:19]} 10. c3 {[%emt 0:03:46]} O-O {[%emt 0:00:45]} 11. Nbd2 {[%emt 0:00:46]} Nf4 {[%emt 0:08:42] [#]} 12. h3 $146 {[%emt 0:10:08]} ({Predecessor:} 12. Re1 d5 13. Nf1 Qf6 14. Ng3 Nxe2+ 15. Qxe2 Bxf3 16. Qxf3 Qxf3 17. gxf3 Na5 18. Nf1 {0-1 (30) Biryukov,M (2298)-Perkovsky,A (2192) Vladivostok 2007}) 12... Nxe2+ {[%emt 0:03:32]} 13. Qxe2 {[%emt 0:00:02]} Bh5 {[%emt 0:01:03]} 14. Qb5 {[%emt 0:05:51]} Bg6 {[%emt 0:01:29]} 15. d5 {[%emt 0:03:30]} a6 {[%emt 0:09:49]} 16. Qc4 {[%emt 0:01:16]} Na7 {[%emt 0:06:07]} 17. Nh4 {[%emt 0:02:52]} Bh5 {[%emt 0:09:40]} 18. Rfe1 {[%emt 0:03:55][%cal Rd5e6]} e5 {[%emt 0:02:15]} 19. Nf5 {[%emt 0:06:03]} Qf6 {[%emt 0:03:01]} (19... Qd7 $11 {and Black has nothing to worry.} 20. Ng3 b5) 20. g4 $18 {[%emt 0:01:02] [#] Hoping for Ne4.} Bg6 {[%emt 0:08:55]} 21. Ne4 $1 {[%emt 0:00:34][%csl LRd6,LRf6]} Qd8 {[%emt 0:00:36]} 22. Nexd6 {[%emt 0:00:36] Pair of Knights!} (22. Nfxd6 b5 23. Qc5 Nc8) 22... b5 $2 {[%emt 0:01:33]} (22... Nc8) 23. Qe2 {[%emt 0:02:33]} (23. Qc5 $142) 23... f6 {[%emt 0:01:59]} 24. f4 {[%emt 0:06:23] 0x0.0005ea962cb6dp-1022s more active pieces. The black rooks are badly placed.} (24. a4 $16) 24... Nc8 {[%emt 0:04:10]} (24... Bxf5 $14 25. Nxf5 g6) 25. fxe5 {[%emt 0:03:40]} Nxd6 {[%emt 0:01:37]} 26. exd6 {[%emt 0:02:44]} (26. Nxd6 fxe5 27. Qxe5 Qb6+ 28. Kh1 Qf2 $14) 26... Re8 $2 {[%emt 0:01:16]} (26... Kh8 27. Qe7 Bxf5) 27. Ne7+ {[%emt 0:00:51]} Kf8 {[%emt 0:01:36]} 28. Nxg6+ {[%emt 0:02:02]} ({Not} 28. Qe6 Bf7 29. Qe4 (29. Qe3 Qxd6 30. Nf5 Qxd5 $11) 29... Qxd6 $11) 28... hxg6 {[%emt 0:00:10] [#]} 29. Qxe8+ {[%emt 0:00:12]} Qxe8 {[%emt 0:00:07]} 30. Rxe8+ {[%emt 0:00:05]} Rxe8 $2 {[%emt 0:00:09][%mdl 4096] Endgame KR-KR} (30... Kxe8 {was called for.} 31. a4 Rc8 32. axb5 axb5) 31. a4 {[%emt 0:00:06]} Rd8 {[%emt 0:03:10]} 32. axb5 {[%emt 0:01:05]} axb5 {[%emt 0:00:32]} 33. Ra6 {[%emt 0:00:07]} f5 {[%emt 0:00:48]} (33... Ke8 $142 34. Rb6 Kd7 35. Rxb5 Kxd6) 34. Rb6 {[%emt 0:00:23] White is clearly winning.} Kf7 {[%emt 0:00:48]} 35. Rxb5 {[%emt 0:00:14] And now Rb7+ would win.} Rxd6 {[%emt 0:00:20]} 36. c4 {[%emt 0:00:02] Weighted Error Value: White=0.18 (very precise) /Black=0.50} 1-0

[Event "AUT Bundesliga Women 2021-22"]
[Site "Austria"]
[Date "2022.04.22"]
[Round "8.8"]
[White "Zhbanova, Angelina"]
[Black "Pribozic, Sabrina"]
[Result "1-0"]
[ECO "C55"]
[WhiteElo "1586"]
[BlackElo "1624"]
[Annotator "NA RC COMBH"]
[PlyCount "45"]
[EventDate "2021.11.06"]
[EventType "team-tourn"]
[EventCountry "AUT"]
[SourceTitle "playchess.com"]
[Source "ChessBase"]
[SourceQuality "1"]
[TimeControl "40/5400+30:1800+30"]

1. e4 {[%emt 0:00:03]} e5 {[%emt 0:00:44]} 2. Nf3 {[%emt 0:00:06]} Nc6 {[%emt 0:02:01]} 3. Bc4 {[%emt 0:00:36]} Nf6 {[%emt 0:01:42]} 4. d3 {[%emt 0:00:27]} d6 {[%emt 0:02:37]} 5. h3 {[%emt 0:09:02]} Be7 {[%emt 0:02:03]} 6. c3 {[%emt 0:03:57]} O-O {[%emt 0:03:20]} 7. Bb3 {[%emt 0:03:26]} h6 {[%emt 0:05:37]} 8. Nbd2 {[%emt 0:03:38]} Re8 {[%emt 0:05:17]} 9. Nf1 {[%emt 0:03:37]} Bf8 {[%emt 0:02:47]} 10. g4 {[%emt 0:04:49]} Be6 {[%emt 0:04:03]} 11. Ng3 {[%emt 0:04:21]} g6 {[%emt 0:02:41]} 12. g5 {[%emt 0:03:54]} hxg5 {[%emt 0:05:26]} 13. Nxg5 {[%emt 0:06:22]} d5 {[%emt 0:10:28]} 14. Qf3 {[%emt 0:05:51]} dxe4 {[%emt 0:08:40]} 15. N3xe4 {[%emt 0:00:52]} Bg7 {[%emt 0:10:48]} 16. Nxe6 {[%emt 0:03:56]} fxe6 {[%emt 0:05:43]} 17. Bg5 {[%emt 0:05:24]} Kf7 {[%emt 0:02:16]} 18. Bxf6 {[%emt 0:01:34]} Bxf6 {[%emt 0:01:15]} 19. Ng5+ {[%emt 0:01:20]} Ke7 {[%emt 0:02:00]} 20. Nxe6 {[%emt 0:01:38]} Qd6 {[%emt 0:03:19]} 21. Rg1 {[%emt 0:04:38]} Rg8 {[%emt 0:07:57]} 22. Ng5 {[%emt 0:05:35]} Rgd8 {[%emt 0:02:09]} 23. Ne4 {[%emt 0:01:20]} 1-0

[Event "AUT Bundesliga Women 2021-22"]
[Site "Austria"]
[Date "2022.04.22"]
[Round "8.9"]
[White "Rozman, Monika"]
[Black "Paehtz, Elisabeth"]
[Result "0-1"]
[ECO "B32"]
[WhiteElo "2115"]
[BlackElo "2500"]
[Annotator "TA"]
[PlyCount "138"]
[EventDate "2021.11.06"]
[EventType "team-tourn"]
[EventCountry "AUT"]
[SourceTitle "playchess.com"]
[Source "ChessBase"]
[SourceQuality "1"]
[TimeControl "40/5400+30:1800+30"]

{[%evp 23,137,14,18,16,27,0,5,0,45,0,-8,-4,45,41,40,43,50,52,43,54,55,66,277,260,259,77,67,70,66,0,43,0,0,0,13,0,0,0,0,-46,-13,-16,-7,-55,-55,-55,-21,-55,-15,-828,-14,-14,-7,-7,0,0,0,0,0,0,8,8,161,8,8,0,0,0,0,0,0,0,0,0,0,0,0,0,0,0,0,-9,-9,-9,-9,-10,-10,-10,-10,-10,-10,-10,-10,-10,-10,-10,-10,-10,-10,-44,-44,-36,-40,-29969,-29971,-29969,-56,-29976,-29977,-29982,-29983,-29983,-29984,-29984,-29985,-29999]} 1. e4 {[%emt 0:00:03] Stohl,I} c5 {[%emt 0:00:03]} 2. Nf3 {[%emt 0:00:03]} Nc6 {[%emt 0:00:04]} 3. d4 {[%emt 0:00:04]} cxd4 {[%emt 0:00:03]} 4. Nxd4 {[%emt 0:00:04]} Qb6 {[%emt 0:00:02]} 5. Nb3 {[%emt 0:04:50]} e6 {[%emt 0:00:37]} 6. Bd3 {[%emt 0:02:16]} Nf6 {[%emt 0:00:08]} 7. O-O {[%emt 0:02:09]} d6 {[%emt 0:01:16]} 8. Nc3 {[%emt 0:07:27]} Be7 {[%emt 0:00:44]} 9. Be3 {[%emt 0:00:40]} Qc7 {[%emt 0:00:10]} 10. f4 {[%emt 0:02:12][%cal Bf2f4,Bf4e5][%mdl 32]} a6 {[%emt 0:01:29]} 11. Qf3 {[%emt 0:01:58]} O-O {[%emt 0:13:47]} 12. Rae1 {[%emt 0:00:15]} b5 {[%emt 0:11:23]} 13. e5 {[%emt 0:14:23] B33: Sicilian: Pelikan and Sveshnikov Variations.} dxe5 {[%emt 0:01:22]} 14. fxe5 {[%emt 0:00:13]} Nd7 {[%emt 0:19:17]} 15. Bf4 {[%emt 0:05:22] The position is equal.} b4 {[%emt 0:20:08] [#]} 16. Nd5 $146 {[%emt 0:08:46]} ({Predecessor:} 16. Nd1 Bb7 17. Qg3 g6 18. Nf2 Qd8 19. Qh3 h5 20. Re3 Kg7 21. Be4 Rh8 22. Nd3 {1-0 (36) Lutz,C (2587)-Smirin,I (2666) Saint Vincent 2000 CBM 078 [Stohl,I]}) 16... exd5 $11 {[%emt 0:00:49]} 17. e6 $132 {[%emt 0:00:55][%mdl 2048] White is not keeping still} Nde5 {[%emt 0:03:44]} (17... Qb7 $1 $11 18. exd7 Qxd7) 18. exf7+ $14 {[%emt 0:02:53]} Rxf7 {[%emt 0:02:07]} 19. Qxd5 {[%emt 0:01:47]} Qd7 {[%emt 0:09:30]} 20. Be4 {[%emt 0:07:40]} Ra7 {[%emt 0:11:24]} 21. Bxe5 {[%emt 0:01:23]} Nxe5 {[%emt 0:00:09]} 22. Qxe5 {[%emt 0:00:16]} Bf6 $2 {[%emt 0:00:37]} (22... Rxf1+ $1 $14 23. Rxf1 Qd6 24. Bd5+ (24. Qh5 g6 $14) 24... Kh8) 23. Qh5 $18 {[%emt 0:10:01]} g6 {[%emt 0:00:03] [#]} 24. Qc5 {[%emt 0:11:16]} (24. Bxg6 $1 $18 {[%mdl 512] is the precise move to win.} Rf8 25. Bd3) 24... Kg7 $16 {[%emt 0:00:06]} 25. Qxb4 {[%emt 0:03:06]} a5 {[%emt 0:00:22]} 26. Qd2 {[%emt 0:05:02]} (26. Qc5 $14 Ba6 27. Bc6) 26... Ba6 {[%emt 0:02:58] [#]} 27. Rxf6 {[%emt 0:05:15]} Rxf6 {[%emt 0:00:16]} 28. Qxa5 {[%emt 0:00:36]} Bd3 {[%emt 0:01:01]} 29. Qe5 {[%emt 0:02:07]} Bxe4 {[%emt 0:00:17]} 30. Qxe4 {[%emt 0:00:56]} Rxa2 {[%emt 0:00:22]} 31. Qe5 {[%emt 0:00:29]} (31. Nc5 $11 Qd2 32. Qe7+ (32. Qe5 $2 Qf2+ 33. Kh1 Kh6 $19) 32... Kg8 33. Nd3) 31... Qa7+ {[%emt 0:00:30]} 32. Kh1 {[%emt 0:01:07]} Raa6 {[%emt 0:00:58][%cal Oa6e6] next ...Rae6! is good for Black.} 33. Nc5 {[%emt 0:00:43] Against Rae6} (33. Nd4 $1 $11 {is superior.}) 33... Ra1 $15 {[%emt 0:00:24]} 34. b4 $1 {[%emt 0:00:13]} Rxe1+ {[%emt 0:00:23]} 35. Qxe1 {[%emt 0:00:02][%mdl 4096] Endgame KQR-KQN} Qf7 {[%emt 0:00:17] ( -> ...Rf1+)} (35... Kf7 $5 {[%cal Ra7e7]}) 36. Qc3 $2 {[%emt 0:00:52][%mdl 8192]} (36. Kg1 $11) 36... Qd5 $2 {[%emt 0:00:45]} ({Black should try} 36... Kg8 $19 {[%cal Rf6f1]} 37. h3 Rf1+ 38. Kh2 Qf4+ 39. Qg3 Rh1+ $3 {[%mdl 512]} 40. Kxh1 Qxg3) 37. h3 $11 {[%emt 0:00:42]} g5 {[%emt 0:00:39][%mdl 1024] Black has compensation.} 38. Nd3 {[%emt 0:00:28]} Qf5 {[%emt 0:00:31]} 39. Kh2 {[%emt 0:00:41]} h5 {[%emt 0:00:26]} 40. Qd4 {[%emt 0:00:25]} g4 {[%emt 0:00:25]} 41. hxg4 {[%emt 0:01:47]} Qg5 {[%emt 0:04:10]} 42. Kg3 {[%emt 0:03:46]} Kh6 $2 {[%emt 0:01:22]} (42... Kf7 $11 {and Black is okay.}) 43. Ne5 $2 {[%emt 0:00:22]} (43. c4 $18) 43... h4+ {[%emt 0:02:14]} 44. Kh2 {[%emt 0:04:03]} Qf4+ {[%emt 0:01:38]} 45. Qxf4+ {[%emt 0:00:12]} Rxf4 {[%emt 0:00:02] KR-KN} 46. b5 {[%emt 0:02:59]} Rb4 {[%emt 0:01:47]} 47. c4 {[%emt 0:00:58] And now Nf7+ would win.} Kg5 {[%emt 0:03:03]} 48. Kh3 {[%emt 0:06:20]} Rb1 $1 {[%emt 0:00:19][%cal Rb1h1]} 49. Nf3+ {[%emt 0:00:39]} Kf4 {[%emt 0:00:24]} 50. Nh2 {[%emt 0:06:29]} Kg5 {[%emt 0:02:43]} 51. Nf3+ {[%emt 0:00:42]} Kf4 {[%emt 0:00:04]} 52. g5 {[%emt 0:00:26] aiming for g6.} Rh1+ {[%emt 0:01:38]} 53. Nh2 {[%emt 0:00:02] Strongly threatening g6.} Kxg5 {[%emt 0:01:01]} 54. b6 {[%emt 0:04:23]} Rc1 {[%emt 0:04:57]} 55. b7 {[%emt 0:00:07]} Rb1 {[%emt 0:00:03]} 56. Nf3+ {[%emt 0:01:00]} Kf4 {[%emt 0:00:50]} 57. b8=Q+ {[%emt 0:00:20]} Rxb8 {[%emt 0:00:04]} 58. Nxh4 {[%emt 0:00:13]} Rb3+ {[%emt 0:01:01]} 59. Kh2 {[%emt 0:01:35]} Rc3 {[%emt 0:00:29]} 60. Ng6+ {[%emt 0:00:41]} Ke4 {[%emt 0:01:19]} 61. g3 {[%emt 0:02:28]} Kf5 {[%emt 0:00:51]} 62. Nf4 {[%emt 0:01:20]} Kg4 {[%emt 0:00:23]} 63. Nd5 $2 {[%emt 0:00:16][%mdl 8192]} (63. c5 $15) 63... Rc2+ {[%emt 0:00:22]} 64. Kg1 {[%emt 0:00:09]} Kf3 $2 {[%emt 0:01:13]} (64... Kxg3 {mates} 65. Kf1 Kf3 66. Ke1 Rxc4 67. Nb6 Rb4 68. Nc8 Rb1+ 69. Kd2 Rb7 70. Ke1 Ke3 71. Kf1 Rc7 72. Nd6 Kf3 73. Kg1 Rg7+ 74. Kh2 Rh7+ 75. Kg1 Rg7+ 76. Kh2 Rh7+ 77. Kg1 Rh5 78. Nc4 Rc5 79. Nd6 Rh5 80. Nf7 Kg3 81. Nd6 Rd5 82. Ne4+ Kf3 83. Nc3 Rc5 84. Na4 Rg5+ 85. Kh2 Rg2+ 86. Kh3 Rc2 87. Kh4 Rc4+ 88. Kg5 Rxa4 89. Kf6 Kf4 90. Ke6 Rd4 91. Kf7 Kf5 92. Ke7 Rd1 93. Kf7 Re1 94. Kg7 Re7+ 95. Kf8 Kf6 96. Kg8 Re8+ 97. Kh7 Rf8 98. Kh6 Rh8#) 65. g4 $2 {[%emt 0:01:05][%mdl 8192]} (65. Ne7 $15) 65... Rxc4 {[%emt 0:01:02] Black mates.} 66. g5 {[%emt 0:00:29]} Rg4+ {[%emt 0:00:49]} 67. Kf1 {[%emt 0:00:28] [#]} Rd4 $1 {[%emt 0:00:28][%cal Rd4d1]} 68. Nc3 {[%emt 0:00:19]} Rd3 {[%emt 0:00:06]} 69. Ne2 {[%emt 0:00:18]} Rd1# {[%emt 0:00:35] Both players deserved the win here.  Weighted Error Value: White=0.29 (precise) /Black=0.33} 0-1

[Event "AUT Bundesliga Women 2021-22"]
[Site "Austria"]
[Date "2022.04.22"]
[Round "8.10"]
[White "Unuk, Laura"]
[Black "Urh, Zala"]
[Result "1/2-1/2"]
[ECO "C67"]
[WhiteElo "2346"]
[BlackElo "2284"]
[Annotator "TA"]
[PlyCount "79"]
[EventDate "2021.11.06"]
[EventType "team-tourn"]
[EventCountry "AUT"]
[SourceTitle "playchess.com"]
[Source "ChessBase"]
[SourceQuality "1"]
[TimeControl "40/5400+30:1800+30"]

{[%evp 18,79,20,16,16,20,12,18,21,18,20,3,3,10,10,8,10,11,4,0,0,0,0,0,12,7,7,0,0,0,0,0,0,0,0,0,0,0,0,0,0,0,0,0,0,0,0,0,0,0,0,0,0,0,0,0,0,0,0,0,0,0,0,0]} 1. e4 {[%emt 0:00:12]} e5 {[%emt 0:00:56]} 2. Nf3 {[%emt 0:00:27]} Nc6 {[%emt 0:00:11]} 3. Bb5 {[%emt 0:01:19]} Nf6 {[%emt 0:03:35]} 4. O-O {[%emt 0:04:19][%cal Bh1f1,Bf1e1,Be1e5][%mdl 32]} Nxe4 {[%emt 0:00:53]} 5. Re1 {[%emt 0:01:59]} Nd6 {[%emt 0:01:05]} 6. Nxe5 {[%emt 0:00:41]} Be7 {[%emt 0:00:45]} 7. Bf1 {[%emt 0:01:03]} Nxe5 {[%emt 0:03:52]} 8. Rxe5 {[%emt 0:00:09]} O-O {[%emt 0:00:15]} 9. d4 {[%emt 0:00:52]} Bf6 {[%emt 0:01:50]} 10. Re1 {[%emt 0:01:16] The position is equal.} Re8 {[%emt 0:04:25] C67: Ruy Lopez: Berlin Defence: 4 0-0 Nxe4.} 11. c3 {[%emt 0:04:29]} Rxe1 {[%emt 0:02:35]} 12. Qxe1 {[%emt 0:00:07]} Ne8 {[%emt 0:00:19][%cal Bd6e8,Be8g7,Bg7f5][%mdl 32]} 13. Bf4 {[%emt 0:07:44]} d5 {[%emt 0:01:29]} 14. Bd3 {[%emt 0:02:20]} g6 {[%emt 0:02:05]} 15. Nd2 {[%emt 0:02:29]} Ng7 {[%emt 0:01:04]} 16. Nf3 {[%emt 0:01:39] 16.Nf3 is better than 16.Qe2.} Bf5 {[%emt 0:03:03]} 17. Bxf5 {[%emt 0:03:32]} Nxf5 {[%emt 0:00:02]} 18. Qe2 {[%emt 0:02:12]} c6 {[%emt 0:03:37] Inhibits Qb5.} 19. Re1 {[%emt 0:00:42]} Ng7 {[%emt 0:01:15]} 20. Be5 {[%emt 0:02:38]} Ne6 {[%emt 0:03:07]} 21. Bxf6 {[%emt 0:01:23]} Qxf6 {[%emt 0:00:09]} 22. Ne5 {[%emt 0:00:05]} Re8 {[%emt 0:06:20]} 23. Ng4 {[%emt 0:07:27]} Qd8 {[%emt 0:03:00]} 24. Qe5 {[%emt 0:05:45] Black must now prevent Nf6+.} Ng7 {[%emt 0:06:16]} 25. Qxe8+ {[%emt 0:00:58]} ({Wrong is} 25. Nh6+ $2 Kf8 26. Nxf7 Rxe5 $19) 25... Nxe8 {[%emt 0:00:40]} 26. Rxe8+ {[%emt 0:00:16][%mdl 64] [#] Remove Defender} Qxe8 {[%emt 0:00:07][%cal Re8e1]} 27. Nf6+ {[%emt 0:00:03]} Kf8 {[%emt 0:00:10][%cal Re8e1]} 28. Nxe8 {[%emt 0:00:04]} Kxe8 $11 {[%emt 0:00:05][%mdl 4096] Endgame KP-KP} 29. f4 {[%emt 0:00:46]} f5 {[%emt 0:01:25]} 30. Kf2 {[%emt 0:00:05]} Kf7 {[%emt 0:00:20]} 31. Ke3 {[%emt 0:00:12]} Ke6 {[%emt 0:00:13] [#]} 32. a4 $146 ({Predecessor:} 32. b4 b5 33. Kf3 Kf6 34. Ke3 a6 35. a3 Ke6 36. Kf3 Kf6 37. Ke3 Ke6 38. Kf3 Kf6 39. Ke3 {½-½ (39) Tabatabaei,M (2629)-Maghsoodloo,P (2676) Chess.com INT 2020}) 32... a5 {[%emt 0:01:00]} 33. b4 {[%emt 0:00:44]} b6 {[%emt 0:00:36]} 34. bxa5 {[%emt 0:00:21]} bxa5 {[%emt 0:00:05]} 35. Kd3 {[%emt 0:00:05]} Kd6 {[%emt 0:00:54]} 36. c4 {[%emt 0:00:27]} Ke6 {[%emt 0:00:35]} 37. h3 {[%emt 0:00:11]} h5 {[%emt 0:00:21]} 38. g3 {[%emt 0:00:38]} Kd6 {[%emt 0:00:37]} 39. c5+ {[%emt 0:00:30]} Ke6 {[%emt 0:00:04]} 40. Ke3 {[%emt 0:00:03] An even fight not without its subleties.  Weighted Error Value: White=0.02 (flawless) /Black=0.01 (flawless)} 1/2-1/2

[Event "AUT Bundesliga Women 2021-22"]
[Site "Austria"]
[Date "2022.04.22"]
[Round "8.11"]
[White "Hercog, Nusa"]
[Black "Imnadze, Nato"]
[Result "1/2-1/2"]
[ECO "A42"]
[WhiteElo "1985"]
[BlackElo "2266"]
[Annotator "TA"]
[PlyCount "80"]
[EventDate "2021.11.06"]
[EventType "team-tourn"]
[EventCountry "AUT"]
[SourceTitle "playchess.com"]
[Source "ChessBase"]
[SourceQuality "1"]
[TimeControl "40/5400+30:1800+30"]

{[%evp 11,80,54,77,6,55,62,67,62,62,56,67,67,62,58,65,71,73,54,127,126,127,131,125,110,153,141,144,157,150,152,151,128,132,131,131,112,114,87,113,115,107,84,86,76,119,119,121,118,132,130,127,117,117,129,122,124,126,126,131,86,92,89,122,51,49,3,84,87,82,50,50]} 1. d4 {[%emt 0:00:05][%cal Bd2d4,Bd4d5][%mdl 32]} g6 2. c4 {[%emt 0:00:18]} Bg7 {[%emt 0:01:02]} 3. Nc3 {[%emt 0:00:59]} d6 {[%emt 0:00:48]} 4. e4 {[%emt 0:00:53]} Nc6 {[%emt 0:00:48]} 5. Be3 {[%emt 0:01:33]} e5 {[%emt 0:00:41]} 6. d5 {[%emt 0:03:09]} Nd4 {[%emt 0:00:06] [#]} 7. Qd2 {[%emt 0:02:58] A42: Modern Defence: Averbakh Variation.} ({Better is} 7. Nge2 $1 $16) 7... Ne7 {[%emt 0:02:48]} (7... c5 $11 {was preferrable.}) 8. Nge2 $14 {[%emt 0:05:07][%cal Re2d4]} c5 {[%emt 0:04:14]} 9. dxc6 $1 {[%emt 0:07:04]} Nexc6 {[%emt 0:10:46] [#]} 10. Nb5 $146 {[%emt 0:04:52][%cal Rb5d4]} ({Predecessor:} 10. Nd5 Be6 11. Nec3 O-O 12. Rc1 {½-½ (12) Plahuta,D (2101)-Gorsek,G (1989) Celje 2008}) 10... O-O {[%emt 0:18:50]} 11. Nbxd4 {[%emt 0:07:45]} exd4 {[%emt 0:03:45]} 12. Nxd4 {[%emt 0:00:38]} (12. Bxd4 Nxd4 13. Nxd4 Re8 $15) 12... Nxd4 {[%emt 0:10:12]} 13. Bxd4 {[%emt 0:00:05]} Qh4 {[%emt 0:04:47]} 14. O-O-O {[%emt 0:13:14]} Bxd4 {[%emt 0:05:48]} (14... Qxe4 $14 15. Bxg7 Kxg7) 15. Qxd4 $16 {[%emt 0:00:09]} Be6 {[%emt 0:02:13]} 16. Kb1 {[%emt 0:02:34]} Rac8 {[%emt 0:06:02]} 17. Be2 {[%emt 0:02:51]} Rfe8 {[%emt 0:01:36]} 18. g3 {[%emt 0:02:08]} Qh3 {[%emt 0:00:08]} 19. b3 {[%emt 0:05:08]} ({But not} 19. Qxa7 Bxc4 20. Bxc4 Rxc4 $16) 19... a5 {[%emt 0:01:48][%cal Oa5a4]} 20. a4 {[%emt 0:03:16]} Bd7 {[%emt 0:10:12][%cal Oe8e4]} 21. Bf3 {[%emt 0:06:46]} Bc6 {[%emt 0:00:47]} 22. Rhe1 {[%emt 0:01:08]} Re6 {[%emt 0:02:02]} 23. Kb2 {[%emt 0:07:05]} Rce8 {[%emt 0:00:16]} 24. Re2 {[%emt 0:07:42]} Qh6 {[%emt 0:08:09]} 25. h4 {[%emt 0:05:08]} f5 {[%emt 0:01:11]} 26. Rde1 {[%emt 0:01:01]} Qf8 {[%emt 0:01:54]} 27. Kc3 {[%emt 0:05:41] White is more active.} fxe4 {[%emt 0:00:41]} 28. Bxe4 {[%emt 0:00:55]} Bxe4 {[%emt 0:00:37]} 29. Rxe4 {[%emt 0:00:04]} Rxe4 {[%emt 0:00:31]} 30. Rxe4 {[%emt 0:00:07]} Rxe4 {[%emt 0:00:27]} 31. Qxe4 {[%emt 0:00:03]} Qxf2 {[%mdl 4096] Endgame KQ-KQ} 32. Qe8+ {[%emt 0:00:24]} Kg7 {[%emt 0:00:42]} 33. Qe7+ {[%emt 0:00:31]} Kg8 {[%emt 0:00:33]} 34. Qxd6 {[%emt 0:00:51] Qb8+ is the strong threat.} Qe3+ {[%emt 0:00:42]} 35. Kb2 {[%emt 0:00:49] [#] Threatens to win with Qb8+.} Qf2+ {[%emt 0:00:17]} 36. Ka3 {[%emt 0:01:52] Strongly threatening Qd5+.} b6 {[%emt 0:01:41]} 37. Qd8+ {[%emt 0:02:39]} ({White should try} 37. c5 $16 Qe1 38. Kb2 Qf2+ 39. Kc3 Qe1+ 40. Kc2 bxc5 41. Qxc5) 37... Kf7 $14 {[%emt 0:00:48]} 38. Qd5+ {[%emt 0:00:50]} (38. Qd7+ $14 {feels stronger.} Kf6 39. Qd6+ Kf7 40. Qd7+ Kf6 41. Qd8+ Kf7 42. Qd7+) 38... Kg7 {[%emt 0:00:33]} (38... Ke7 $11 {keeps the balance.}) 39. Qe5+ $16 {[%emt 0:00:33]} Kg8 {[%emt 0:00:09]} 40. Qe6+ {[%emt 0:00:52]} Kg7 {[%emt 0:00:05] Weighted Error Value: White=0.14 (very precise) /Black=0.14 (very precise)} 1/2-1/2

[Event "AUT Bundesliga Women 2021-22"]
[Site "Austria"]
[Date "2022.04.22"]
[Round "8.12"]
[White "Trippold, Denise"]
[Black "Zoehrer, Sarah"]
[Result "1-0"]
[ECO "A10"]
[WhiteElo "2131"]
[BlackElo "1654"]
[Annotator "TA"]
[PlyCount "65"]
[EventDate "2021.11.06"]
[EventType "team-tourn"]
[EventCountry "AUT"]
[SourceTitle "playchess.com"]
[Source "ChessBase"]
[SourceQuality "1"]
[TimeControl "40/5400+30:1800+30"]

{[%evp 13,65,22,45,27,41,35,66,58,61,55,55,62,81,49,50,59,59,33,25,0,54,48,45,51,45,26,46,41,124,106,178,164,181,135,182,184,170,162,1206,829,829,829,829,829,740,522,480,458,29996,29997,29997,29998,29998,29999]} 1. c4 {[%emt 0:00:06]} f5 {[%emt 0:01:21]} 2. g3 {[%emt 0:00:29]} Nf6 {[%emt 0:00:57]} 3. Nf3 {[%emt 0:00:17][%cal Bg1f3,Bf3d4,Bd4c2,Bc2e3][%mdl 32]} b6 {[%emt 0:04:55]} 4. Bg2 {[%emt 0:01:16]} Bb7 {[%emt 0:00:24]} 5. O-O {[%emt 0:01:19]} e6 {[%emt 0:05:08]} 6. d4 {[%emt 0:02:36]} Be7 {[%emt 0:03:01]} 7. d5 {[%emt 0:07:53]} O-O {[%emt 0:07:03]} 8. Nd4 {[%emt 0:09:04] [#] d6 is the strong threat. A84: Dutch Defence: 2 c4 Miscellaneous.} c5 {[%emt 0:04:38]} 9. Nc2 {[%emt 0:07:23] Black must now prevent d6.} exd5 {[%emt 0:19:08]} 10. Nc3 {[%emt 0:02:04] [#] White is slightly better.} d6 $146 {[%emt 0:10:15]} ({Predecessor:} 10... Kh8 11. cxd5 Ne8 12. Bf4 Bg5 13. Qd2 Bxf4 14. Qxf4 Kg8 15. h4 d6 16. Ne3 g6 {½-½ (24) Graca,R (2075)-Bokiej,P (2068) Leba 2008}) 11. Ne3 {[%emt 0:10:17]} Qd7 {[%emt 0:04:56] [#] Strongly threatening ...d4.} 12. Ncxd5 {[%emt 0:00:57]} Nxd5 {[%emt 0:11:15]} 13. Nxd5 {[%emt 0:01:56]} ({But not} 13. cxd5 $6 Na6 $11) 13... Bf6 {[%emt 0:06:11]} 14. Nxf6+ {[%emt 0:16:37]} Rxf6 15. Bxb7 {[%emt 0:01:10]} Qxb7 {[%emt 0:00:22]} 16. Bf4 {[%emt 0:00:09]} Qc6 {[%emt 0:01:25]} (16... Qe4 $11) 17. Qd3 {[%emt 0:01:08]} Nd7 {[%emt 0:03:04]} 18. Rad1 {[%emt 0:02:09][%cal Rf4d6]} Ne5 {[%emt 0:00:57]} 19. Qc2 {[%emt 0:06:15]} (19. Bxe5 $5 dxe5 20. f3 $11) 19... Re8 {[%emt 0:05:28]} 20. Rd5 {[%emt 0:18:19]} b5 {[%emt 0:02:07]} (20... Ng6 $14) 21. Bxe5 $16 {[%emt 0:03:17]} Rxe5 {[%emt 0:00:47]} (21... dxe5 $16 22. e4 fxe4) 22. Rxe5 $18 {[%emt 0:00:06]} dxe5 $16 {[%emt 0:00:08][%mdl 4096] Endgame KQR-KQR} 23. Rd1 {[%emt 0:00:27]} ({Better is} 23. cxb5 $18 Qxb5 24. Rd1) 23... e4 {[%emt 0:01:40]} (23... a6 $16 24. Rd5 e4) 24. cxb5 $18 {[%emt 0:01:06]} Qxb5 {[%emt 0:00:19]} 25. Rd5 {[%emt 0:00:04]} Qa5 $2 {[%emt 0:02:15]} (25... h5 26. Rxc5 Qa6) 26. Qc4 {[%emt 0:04:56][%cal Rd5d8]} Kf8 {[%emt 0:02:25]} 27. Rxc5 {[%emt 0:00:07]} Qb6 {[%emt 0:02:21]} 28. Rc8+ {[%emt 0:01:26]} Ke7 {[%emt 0:00:09]} 29. Rc7+ {[%emt 0:00:01]} Kf8 {[%emt 0:00:30]} 30. Rd7 {[%emt 0:00:45] White wants to mate with Qc8+.} Qa6 {[%emt 0:00:57] Prevents Qc8+.} (30... Re6 $18 31. Qd5 Qc6) 31. Rd8+ {[%emt 0:00:39] White mates.} Ke7 {[%emt 0:00:11]} 32. Qc7+ {[%emt 0:00:01]} Ke6 {[%emt 0:00:37]} 33. Qd7+ {[%emt 0:00:14] Weighted Error Value: White=0.21 (precise) /Black=0.52} 1-0